bitfinex-derivatives/quotes_BTCF0:USTF0_20250318
["timestamp","ask_amount","ask_price","bid_price","bid_amount"]
[1742322909370,0.201933,81426.0,81425.0,1.2534]
[1742322909557,0.201933,81426.0,81425.0,1.3762345]
[1742322909758,0.0791,81426.0,81425.0,1.385527]
[1742322909964,0.12159391,81437.0,81434.0,0.1228209]
[1742322910159,0.23103986,81435.0,81434.0,0.6069009]
[1742322910471,0.1228194,81435.0,81434.0,0.48408]
[1742322910768,0.1627194,81435.0,81434.0,0.48408]
[1742322910965,0.1627194,81435.0,81434.0,0.6069009]
[1742322911471,0.1627194,81435.0,81434.0,0.65717872]
[1742322911868,0.1627194,81435.0,81434.0,0.53435782]
[1742322912769,0.1627194,81435.0,81434.0,0.65717872]
[1742322913170,0.0399,81435.0,81434.0,0.65717872]
[1742322913362,0.1998194,81435.0,81434.0,0.65717872]
[1742322913557,0.1998194,81435.0,81434.0,0.3608]
[1742322913775,0.1228314,81427.0,81426.0,0.12301721]
[1742322913962,0.1228314,81427.0,81426.0,0.12342421]
[1742322914266,0.1970314,81427.0,81426.0,0.12342421]
[1742322914473,0.1970314,81427.0,81426.0,0.24625721]
[1742322914859,0.0742,81427.0,81426.0,0.29650062]
[1742322915064,0.0371,81427.0,81426.0,0.65730062]
[1742322915259,0.1228171,81437.0,81436.0,0.1228164]
[1742322915563,0.1228171,81437.0,81436.0,0.6068564]
[1742322915766,0.1633171,81437.0,81436.0,0.6068564]
[1742322916269,0.1633171,81437.0,81436.0,0.6450564]
[1742322916467,0.2004171,81437.0,81436.0,0.6844564]
[1742322916670,0.0776,81437.0,81436.0,0.6844564]
[1742322917073,0.0776,81437.0,81436.0,0.7217564]
[1742322917374,0.2004164,81437.0,81436.0,0.7217564]
[1742322917671,0.2004164,81437.0,81436.0,0.59894]
[1742322918972,0.2004164,81437.0,81436.0,0.48404]
[1742322919172,0.2004164,81437.0,81436.0,0.6068579]
[1742322920172,0.0776,81437.0,81436.0,0.6068579]
[1742322920369,0.0776,81437.0,81436.0,0.6843579]
[1742322920570,0.2004164,81437.0,81436.0,0.6843579]
[1742322921178,0.2004164,81437.0,81436.0,0.52454]
[1742322921477,0.2004164,81437.0,81436.0,0.48404]
[1742322921675,0.2004164,81437.0,81436.0,0.6068579]
[1742322922179,0.2004164,81437.0,81436.0,0.6473579]
[1742322922473,0.0776,81437.0,81436.0,0.6869579]
[1742322923069,0.2004164,81437.0,81436.0,0.6869579]
[1742322923772,0.04923508,81454.0,81436.0,0.6869579]
[1742322923773,0.0614004,81449.0,81436.0,0.56414]
[1742322923967,0.1228036,81447.0,81446.0,0.4836013]
[1742322924174,0.0742,81448.0,81447.0,0.1228013]
[1742322924377,0.1597998,81448.0,81447.0,0.2006013]
[1742322924879,0.1597998,81448.0,81447.0,0.24935956]
[1742322928783,0.037,81448.0,81447.0,0.24935956]
[1742322928978,0.02505468,81464.0,81457.0,0.1227862]
[1742322928979,0.1227852,81458.0,81457.0,0.1227862]
[1742322929185,0.0613922,81459.0,81458.0,0.1227847]
[1742322929384,0.0613922,81459.0,81458.0,0.2003847]
[1742322929579,0.0613922,81459.0,81458.0,0.13127319]
[1742322929792,0.0982922,81459.0,81458.0,0.13127319]
[1742322930173,0.0982922,81459.0,81458.0,0.0776]
[1742322930375,0.1227817,81461.0,81460.0,0.1227802]
[1742322930782,0.1596817,81461.0,81460.0,0.1984802]
[1742322931176,0.1596817,81461.0,81460.0,0.1984817]
[1742322931484,0.1596817,81461.0,81460.0,0.0757]
[1742322931693,0.1596817,81461.0,81460.0,0.0376]
[1742322932381,0.0613908,81460.0,81456.0,0.1232]
[1742322932587,0.1227862,81457.0,81456.0,0.1232]
[1742322932788,0.1227862,81457.0,81456.0,0.2459877]
[1742322932973,0.1612862,81457.0,81456.0,0.1232]
[1742322933175,0.1612862,81457.0,81456.0,0.2459877]
[1742322933983,0.1612862,81457.0,81456.0,0.3217877]
[1742322934379,0.1612862,81457.0,81456.0,0.199]
[1742322935089,0.1612862,81457.0,81456.0,0.3217877]
[1742322935584,0.1612862,81457.0,81456.0,0.1232]
[1742322936082,0.1612862,81457.0,81456.0,0.2459877]
[1742322936279,0.2012862,81457.0,81456.0,0.2459877]
[1742322937083,0.2012862,81457.0,81456.0,0.3628877]
[1742322937476,0.0785,81457.0,81456.0,0.3628877]
[1742322937677,0.0385,81457.0,81456.0,0.3628877]
[1742322937882,0.1227759,81466.0,81465.0,0.1841573]
[1742322938080,0.1227759,81466.0,81465.0,0.6681573]
[1742322938289,0.1841624,81466.0,81465.0,0.71728644]
[1742322938484,0.2616624,81466.0,81465.0,0.59451534]
[1742322940986,0.2616624,81466.0,81465.0,0.63131534]
[1742322941291,0.1002865,81466.0,81465.0,0.63131534]
[1742322941790,0.1392865,81466.0,81465.0,0.63131534]
[1742322942987,0.1392865,81466.0,81465.0,0.3608]
[1742322943191,0.1227847,81458.0,81457.0,0.0378]
[1742322943493,0.1227847,81458.0,81457.0,0.16096]
[1742322943691,0.1985847,81458.0,81457.0,0.16096]
[1742322944071,0.1985847,81458.0,81457.0,0.0378]
[1742322944277,0.1985847,81458.0,81457.0,0.16096]
[1742322944483,0.0368,81458.0,81457.0,0.33307189]
[1742322944684,0.1841629,81466.0,81465.0,0.0613851]
[1742322944981,0.1841629,81466.0,81465.0,0.5453451]
[1742322945483,0.039,81467.0,81466.0,0.1227726]
[1742322945886,0.039,81467.0,81466.0,0.1627726]
[1742322946280,0.1227671,81470.0,81469.0,0.1227681]
[1742322946480,0.1617671,81470.0,81469.0,0.1227681]
[1742322946691,0.1617671,81470.0,81469.0,0.1627681]
[1742322947482,0.039,81470.0,81469.0,0.1627681]
[1742322947682,0.0984782,81477.0,81469.0,0.1627681]
[1742322947683,0.0613802,81475.0,81474.0,0.1227606]
[1742322947893,0.0613802,81475.0,81474.0,0.6452206]
[1742322948290,0.0994802,81475.0,81474.0,0.6452206]
[1742322948490,0.1370802,81475.0,81474.0,0.6452206]
[1742322948690,0.17219337,81482.0,81474.0,0.68597856]
[1742322948883,0.11081887,81482.0,81481.0,0.48355]
[1742322949197,0.11081887,81482.0,81481.0,0.60671]
[1742322949380,0.11081887,81482.0,81481.0,0.64341]
[1742322949581,0.23356737,81482.0,81481.0,0.64341]
[1742322950090,0.23356737,81482.0,81481.0,0.68191]
[1742322950285,0.11081887,81482.0,81481.0,0.68191]
[1742322950980,0.0381,81486.0,81481.0,0.68191]
[1742322950981,0.1608425,81486.0,81485.0,0.122744]
[1742322951180,0.122744,81485.0,81484.0,0.3608]
[1742322951400,0.160744,81485.0,81484.0,0.4835455]
[1742322951694,0.160144,81485.0,81484.0,0.4835455]
[1742322953682,0.0374,81485.0,81484.0,0.4835455]
[1742322953890,0.1841065,81490.0,81489.0,0.122738]
[1742322954191,0.0384,81493.0,81492.0,0.1227335]
[1742322954387,0.0384,81493.0,81492.0,0.4835335]
[1742322954585,0.0384,81493.0,81492.0,0.5212335]
[1742322954996,0.122732,81493.0,81492.0,0.5212335]
[1742322955300,0.159232,81493.0,81492.0,0.5212335]
[1742322956198,0.197632,81493.0,81492.0,0.5212335]
[1742322956888,0.197632,81493.0,81492.0,0.5611335]
[1742322957590,0.0365,81493.0,81492.0,0.5611335]
[1742322958500,0.159232,81493.0,81492.0,0.5611335]
[1742322958701,0.0365,81493.0,81492.0,0.5611335]
[1742322960388,0.159232,81493.0,81492.0,0.6842135]
[1742322960893,0.198132,81493.0,81492.0,0.6842135]
[1742322961306,0.0365,81493.0,81492.0,0.6842135]
[1742322961801,0.0389,81498.0,81497.0,0.1227259]
[1742322962502,0.32743598,81499.0,81498.0,0.1227244]
[1742322962690,0.32743598,81499.0,81498.0,0.2458044]
[1742322963190,0.48725888,81499.0,81498.0,0.12308]
[1742322963390,0.52415888,81499.0,81498.0,0.2458044]
[1742322963790,0.52415888,81499.0,81497.0,0.0386]
[1742322963791,0.1227244,81498.0,81497.0,0.0386]
[1742322963990,0.1227244,81498.0,81497.0,0.16168]
[1742322964195,0.1967244,81498.0,81497.0,0.16168]
[1742322964403,0.1967244,81498.0,81496.0,0.89152]
[1742322964404,0.1227259,81497.0,81496.0,0.89152]
[1742322964605,0.1227259,81497.0,81496.0,1.0146]
[1742322964907,0.1967259,81497.0,81496.0,1.0146]
[1742322965496,0.122744,81485.0,81484.0,0.12292919]
[1742322965807,0.122744,81485.0,81484.0,0.24600919]
[1742322966195,0.122744,81485.0,81484.0,0.32500919]
[1742322966499,0.0757,81487.0,81486.0,0.1227425]
[1742322967005,0.198441,81487.0,81486.0,0.2017425]
[1742322969197,0.0757,81487.0,81486.0,0.2017425]
[1742322969403,0.198441,81487.0,81486.0,0.2017425]
[1742322969994,0.198441,81487.0,81486.0,0.079]
[1742322970203,0.198441,81487.0,81486.0,0.20208]
[1742322970697,0.122744,81485.0,81484.0,0.00018409]
[1742322971005,0.122744,81485.0,81484.0,0.12326409]
[1742322971205,0.198044,81485.0,81484.0,0.12326409]
[1742322971394,0.197044,81485.0,81484.0,0.12326409]
[1742322971792,0.0753,81485.0,81484.0,0.24600959]
[1742322971994,0.198044,81485.0,81484.0,0.32510959]
[1742322973307,0.0379,81485.0,81484.0,0.32510959]
[1742322973511,0.0613671,81492.0,81490.0,0.1227365]
[1742322973512,0.0385,81491.0,81490.0,0.1227365]
[1742322973809,0.197935,81491.0,81490.0,0.6066165]
[1742322974509,0.0752,81491.0,81490.0,0.6066165]
[1742322976408,0.197935,81491.0,81490.0,0.6066165]
[1742322976602,0.197935,81491.0,81490.0,0.48388]
[1742322976803,0.0613698,81488.0,81484.0,0.00018409]
[1742322976998,0.122744,81485.0,81484.0,0.12326409]
[1742322977395,0.200644,81485.0,81484.0,0.0541776]
[1742322977801,0.200644,81485.0,81484.0,0.1769231]
[1742322979420,0.1227561,81477.0,81473.0,0.12308]
[1742322979596,0.1227561,81477.0,81474.0,0.00927084]
[1742322980010,0.1227636,81472.0,81466.0,0.2458526]
[1742322980198,0.1227636,81472.0,81466.0,0.12308]
[1742322980401,0.2019636,81472.0,81466.0,0.12308]
[1742322980802,0.2019636,81472.0,81464.0,0.89152]
[1742322980803,0.2019636,81472.0,81464.0,1.0142949]
[1742322981010,0.2019636,81472.0,81466.0,0.12308]
[1742322981312,0.2019636,81472.0,81468.0,0.04181579]
[1742322982103,0.2019636,81472.0,81468.0,0.16458499]
[1742322982299,0.2059636,81472.0,81471.0,0.36984677]
[1742322982706,0.0832,81472.0,81471.0,0.49261187]
[1742322983004,0.2019636,81472.0,81471.0,0.49261187]
[1742322983199,0.2049636,81472.0,81471.0,0.49261187]
[1742322983613,0.0822,81472.0,81471.0,0.49261187]
[1742322983815,0.2049636,81472.0,81471.0,0.49261187]
[1742322984412,0.2049636,81472.0,81471.0,0.36984677]
[1742322984613,0.2019636,81472.0,81471.0,0.36984677]
[1742322985514,0.2029636,81472.0,81471.0,0.36984677]
[1742322986319,0.2029636,81472.0,81471.0,7e-08]
[1742322986518,0.1227757,81464.0,81453.0,0.12308]
[1742322987017,0.2009757,81464.0,81453.0,0.12308]
[1742322987328,0.2009757,81464.0,81458.0,0.04186413]
[1742322987511,0.2009757,81464.0,81453.0,0.12308]
[1742322987828,0.2009757,81464.0,81456.0,0.04154669]
[1742322988119,0.5617757,81464.0,81453.0,0.48388]
[1742322988908,0.5657757,81464.0,81453.0,0.48388]
[1742322989221,0.5657757,81464.0,81453.0,0.52550686]
[1742322989618,0.5667757,81464.0,81453.0,0.52550686]
[1742322989916,0.5667757,81464.0,81454.0,0.0385]
[1742322990715,0.2059757,81464.0,81460.0,0.00907365]
[1742322990927,0.2059757,81464.0,81463.0,0.12296129]
[1742322991222,0.2009757,81464.0,81463.0,0.12296129]
[1742322991423,0.2059757,81464.0,81463.0,0.00018409]
[1742322992122,0.2059757,81464.0,81463.0,0.04251698]
[1742322992309,0.2059757,81464.0,81463.0,0.00018409]
[1742322992710,0.2059757,81464.0,81463.0,0.07758409]
[1742322992910,0.2049757,81464.0,81463.0,0.07758409]
[1742322993518,0.2049757,81464.0,81463.0,0.03828409]
[1742322994215,0.2049757,81464.0,81463.0,0.16106129]
[1742322994414,0.1607757,81464.0,81463.0,0.16106129]
[1742322994619,0.1237757,81464.0,81463.0,0.16106129]
[1742322995122,0.1237757,81464.0,81463.0,0.07648409]
[1742322995326,0.2034757,81464.0,81463.0,0.07648409]
[1742322996021,0.2014757,81464.0,81463.0,0.07648409]
[1742322997120,0.5622757,81464.0,81463.0,0.00018409]
[1742322998031,0.5622757,81464.0,81463.0,9e-08]
[1742322998529,0.60656518,81464.0,81463.0,9e-08]
[1742322999024,0.24576518,81464.0,81463.0,9e-08]
[1742322999326,0.60656518,81464.0,81463.0,9e-08]
[1742323001124,0.2034757,81464.0,81463.0,9e-08]
[1742323001326,0.2034757,81464.0,81463.0,0.20347729]
[1742323001928,0.1644757,81464.0,81463.0,0.20347729]
[1742323002127,0.1624757,81464.0,81463.0,0.20347729]
[1742323002433,0.1674757,81464.0,81463.0,0.20347729]
[1742323002621,0.1674757,81464.0,81463.0,0.24619702]
[1742323003627,0.0447,81464.0,81463.0,0.24619702]
[1742323003823,0.1227754,81469.0,81468.0,0.1841483]
[1742323004035,0.1227754,81469.0,81468.0,0.3072283]
[1742323004419,0.1841598,81469.0,81468.0,0.48388]
[1742323005030,0.2244598,81469.0,81468.0,0.52448]
[1742323007030,0.2244598,81469.0,81468.0,0.2864496]
[1742323007532,0.2244598,81469.0,81468.0,0.16368]
[1742323008127,0.2244598,81469.0,81468.0,0.2864496]
[1742323008627,0.2244598,81469.0,81468.0,0.0406]
[1742323008937,0.1227757,81464.0,81463.0,0.04271982]
[1742323009133,0.1227757,81464.0,81463.0,9e-08]
[1742323009334,0.2440757,81464.0,81463.0,9e-08]
[1742323009838,0.28008827,81464.0,81463.0,9e-08]
[1742323010144,0.1227937,81452.0,81451.0,0.11865917]
[1742323010442,0.1227937,81452.0,81451.0,0.24145447]
[1742323011239,0.1227937,81452.0,81451.0,0.24245447]
[1742323012031,0.0613961,81454.0,81453.0,0.1227907]
[1742323012230,0.4604381,81461.0,81455.0,0.0613946]
[1742323012423,0.1227877,81457.0,81456.0,0.1227831]
[1742323013139,0.1227839,81459.0,81458.0,0.0613922]
[1742323013337,0.3990478,81461.0,81460.0,0.1227817]
[1742323013538,0.521828,81461.0,81460.0,0.6066617]
[1742323013837,0.521828,81461.0,81460.0,0.6458617]
[1742323014641,0.1227802,81461.0,81460.0,0.6458617]
[1742323015028,0.1227802,81461.0,81460.0,0.52308]
[1742323015730,0.1607802,81461.0,81460.0,0.52308]
[1742323018232,0.1227802,81461.0,81460.0,0.52308]
[1742323018437,0.1227802,81461.0,81460.0,0.6458617]
[1742323018741,0.1227802,81461.0,81460.0,0.52308]
[1742323019345,0.1227784,81463.0,81462.0,0.0613882]
[1742323019546,0.0613808,81474.0,81469.0,0.1227681]
[1742323019743,0.0613794,81476.0,81469.0,0.05366603]
[1742323020045,0.0388,81477.0,81469.0,0.05366603]
[1742323020233,0.5218144,81470.0,81469.0,0.05366603]
[1742323020541,0.5218144,81470.0,81469.0,0.0899552]
[1742323020741,0.5606144,81470.0,81469.0,0.03628917]
[1742323020933,0.5606144,81470.0,81469.0,0.1227681]
[1742323021135,0.6008144,81470.0,81469.0,0.1227681]
[1742323021642,0.1227681,81469.0,81468.0,0.3608]
[1742323022126,0.1227681,81469.0,81468.0,0.48384]
[1742323022127,0.2031681,81469.0,81468.0,0.48384]
[1742323022332,0.2031681,81469.0,81468.0,0.12304]
[1742323022728,0.2031681,81469.0,81468.0,0.1580485]
[1742323024146,0.1227726,81466.0,81465.0,0.1227734]
[1742323024637,0.2053726,81466.0,81465.0,0.1227734]
[1742323025038,0.1227757,81464.0,81463.0,0.03663428]
[1742323025240,0.1227757,81464.0,81463.0,0.1227772]
[1742323025432,0.2053757,81464.0,81463.0,0.1227772]
[1742323025745,0.2053757,81464.0,81463.0,0.15811298]
[1742323026044,0.1237751,81466.0,81465.0,0.1227741]
[1742323026234,0.001,81466.0,81465.0,0.1227741]
[1742323026428,0.001,81466.0,81465.0,0.2030741]
[1742323026644,0.1035797,81475.0,81471.0,0.1227651]
[1742323026941,0.12294769,81472.0,81471.0,0.1227651]
[1742323027143,0.12294769,81472.0,81471.0,0.2448651]
[1742323027837,0.16114769,81472.0,81471.0,0.2448651]
[1742323028343,0.16214769,81472.0,81471.0,0.2448651]
[1742323028738,0.20424769,81472.0,81471.0,0.2448651]
[1742323029254,0.20424769,81472.0,81471.0,0.1221]
[1742323029546,0.20424769,81472.0,81471.0,0.2448651]
[1742323030040,0.00118409,81472.0,81471.0,0.2448651]
[1742323030244,0.12394769,81472.0,81471.0,0.2448651]
[1742323030631,0.16454769,81472.0,81471.0,0.2448651]
[1742323031040,0.20664769,81472.0,81471.0,0.2448651]
[1742323031839,0.20664769,81472.0,81471.0,0.1221]
[1742323032439,0.1227787,81462.0,81450.0,0.3608]
[1742323032735,0.1227787,81462.0,81450.0,0.5225]
[1742323032937,0.2025787,81462.0,81451.0,0.204495]
[1742323033142,0.2025787,81462.0,81452.0,0.15812503]
[1742323033341,0.2025787,81462.0,81452.0,0.15812453]
[1742323033546,0.2025787,81462.0,81452.0,0.03533213]
[1742323033849,0.2025787,81462.0,81451.0,0.1623949]
[1742323034347,0.2025787,81462.0,81457.0,0.1227852]
[1742323034540,0.2025787,81462.0,81454.0,0.0613952]
[1742323034739,0.2025787,81462.0,81457.0,0.1227858]
[1742323034934,0.2025787,81462.0,81456.0,0.1227874]
[1742323035141,0.2025787,81462.0,81456.0,0.1227871]
[1742323035340,0.2025787,81462.0,81458.0,0.122784]
[1742323035646,0.2025787,81462.0,81459.0,0.1227824]
[1742323035942,0.2025787,81462.0,81460.0,0.1227816]
[1742323036246,0.2025787,81462.0,81460.0,0.1227813]
[1742323036447,0.2025787,81462.0,81455.0,0.9531941]
[1742323036644,0.2025787,81462.0,81460.0,0.1227811]
[1742323037046,0.2025787,81462.0,81456.0,0.1459933]
[1742323037257,0.2025787,81462.0,81459.0,0.1227829]
[1742323037430,0.2045787,81462.0,81456.0,0.1459938]
[1742323037750,0.2045787,81462.0,81456.0,0.0846]
[1742323038542,0.2045787,81462.0,81455.0,0.8918]
[1742323039944,0.2045787,81462.0,81461.0,0.12296429]
[1742323040342,0.2055787,81462.0,81461.0,0.15878573]
[1742323040945,0.2055787,81462.0,81461.0,0.00018409]
[1742323041147,0.2025787,81462.0,81461.0,0.00018409]
[1742323041450,0.1247787,81462.0,81461.0,0.24125067]
[1742323041745,0.1247787,81462.0,81461.0,0.20606429]
[1742323041954,0.1227787,81462.0,81461.0,0.20606429]
[1742323042151,0.0613858,81467.0,81463.0,0.061388]
[1742323042454,0.1227739,81466.0,81465.0,0.1227726]
[1742323042654,0.0613828,81471.0,81470.0,0.1227666]
[1742323042845,0.0613828,81471.0,81470.0,0.2457666]
[1742323043042,0.0613828,81471.0,81470.0,0.3228666]
[1742323043539,0.0613828,81471.0,81470.0,0.2001]
[1742323043848,0.1025828,81471.0,81470.0,0.2001]
[1742323044050,0.1423828,81471.0,81470.0,0.2001]
[1742323044746,0.1423828,81471.0,81470.0,0.2011]
[1742323045247,0.1423828,81471.0,81470.0,0.2001]
[1742323045551,0.1423828,81471.0,81470.0,0.123]
[1742323045748,0.1227681,81469.0,81468.0,0.0764]
[1742323046143,0.1227681,81469.0,81468.0,0.1991696]
[1742323046339,0.1617681,81469.0,81468.0,0.1991696]
[1742323046649,0.1987681,81469.0,81468.0,0.1991696]
[1742323046852,0.1987681,81469.0,81468.0,0.0764]
[1742323048048,0.1227787,81462.0,81458.0,0.0795]
[1742323048258,0.1227787,81462.0,81461.0,0.00018409]
[1742323048443,0.2023787,81462.0,81461.0,0.00018409]
[1742323048754,0.2023787,81462.0,81461.0,6.323e-05]
[1742323049352,0.2023787,81462.0,81449.0,0.00934422]
[1742323049353,0.1227892,81455.0,81449.0,0.00934422]
[1742323049553,0.1227968,81450.0,81449.0,0.0407]
[1742323049747,0.1228103,81441.0,81440.0,0.0374]
[1742323049950,0.1228103,81441.0,81440.0,0.0781]
[1742323050357,0.1626103,81441.0,81440.0,0.0781]
[1742323050850,0.1626103,81441.0,81440.0,0.23729992]
[1742323051057,0.1626103,81441.0,81440.0,0.27539992]
[1742323051256,0.1626103,81441.0,81440.0,0.28480278]
[1742323051752,0.1228103,81441.0,81440.0,0.28680278]
[1742323053050,0.1228103,81441.0,81440.0,0.28880278]
[1742323053562,0.1228103,81441.0,81440.0,0.16599098]
[1742323053860,0.1228103,81441.0,81440.0,0.28880278]
[1742323054064,0.1842028,81447.0,81446.0,0.1842026]
[1742323054252,0.1842028,81447.0,81446.0,0.6680026]
[1742323054758,0.1228,81448.0,81447.0,0.1842004]
[1742323054958,0.0613989,81450.0,81448.0,0.1227998]
[1742323055464,0.12298239,81449.0,81448.0,0.1995998]
[1742323057164,0.00018409,81449.0,81448.0,0.1995998]
[1742323060166,0.0994895,81462.0,81461.0,0.1227802]
[1742323060476,0.0381,81462.0,81461.0,0.1227802]
[1742323060651,0.0374,81470.0,81469.0,0.1227666]
[1742323060966,0.0374,81470.0,81469.0,0.1584457]
[1742323061261,0.3608,81471.0,81470.0,0.1227666]
[1742323062058,0.0378,81477.0,81476.0,0.1227576]
[1742323062257,0.0378,81477.0,81476.0,0.2457576]
[1742323062754,0.1979561,81477.0,81476.0,0.2457576]
[1742323063265,0.1208809,81484.0,81483.0,0.122747]
[1742323063466,0.0373,81495.0,81494.0,0.1227305]
[1742323063665,0.0378,81498.0,81497.0,0.1227259]
[1742323064064,0.1605244,81498.0,81497.0,0.1227259]
[1742323064659,0.0378,81498.0,81497.0,0.1227259]
[1742323064878,0.1,81500.0,81499.0,0.1227229]
[1742323065373,0.00018409,81506.0,81505.0,0.1227139]
[1742323065671,0.00018409,81506.0,81505.0,0.6064739]
[1742323066770,0.07488409,81506.0,81505.0,0.6064739]
[1742323067371,0.19759649,81506.0,81505.0,0.6064739]
[1742323067772,0.07788409,81506.0,81505.0,0.6064739]
[1742323068377,0.07488409,81506.0,81505.0,0.6074739]
[1742323069573,0.3608,81515.0,81514.0,0.1227003]
[1742323069867,0.3608,81515.0,81514.0,0.2456603]
[1742323070880,0.3628,81515.0,81514.0,0.2456603]
[1742323071058,0.3648,81515.0,81514.0,0.24556507]
[1742323071261,0.004,81515.0,81514.0,0.24556507]
[1742323072275,0.1266988,81515.0,81514.0,0.24556507]
[1742323072475,0.1266988,81515.0,81514.0,0.12296]
[1742323072780,0.2040988,81515.0,81514.0,0.12296]
[1742323073476,0.2040988,81515.0,81514.0,0.2456603]
[1742323076481,0.2040988,81515.0,81514.0,0.3261603]
[1742323077273,0.2040988,81515.0,81514.0,0.16278]
[1742323077473,0.2040988,81515.0,81514.0,0.0399]
[1742323077674,0.1227019,81513.0,81512.0,0.3608]
[1742323077882,0.1227019,81513.0,81512.0,0.48368]
[1742323078084,0.2022019,81513.0,81512.0,0.48368]
[1742323078974,0.2022019,81513.0,81512.0,0.6063834]
[1742323079174,0.2032019,81513.0,81512.0,0.6453834]
[1742323079672,0.2042019,81513.0,81512.0,0.6453834]
[1742323079991,0.2042019,81513.0,81512.0,0.6836834]
[1742323085074,0.2042019,81513.0,81512.0,0.56098]
[1742323085671,0.2042019,81513.0,81512.0,0.6836834]
[1742323086467,0.0426,81513.0,81512.0,0.6836834]
[1742323086877,0.1653019,81513.0,81512.0,0.6836834]
[1742323087172,0.0426,81513.0,81512.0,0.6836834]
[1742323087394,0.1653019,81513.0,81512.0,0.6836834]
[1742323087576,0.0426,81513.0,81512.0,0.6836834]
[1742323088488,0.1226961,81517.0,81516.0,0.1226973]
[1742323088677,0.1840521,81514.0,81513.0,0.1227017]
[1742323088880,0.1840521,81514.0,81513.0,0.1615017]
[1742323089078,0.2633521,81514.0,81513.0,0.1615017]
[1742323089380,0.1406502,81514.0,81513.0,0.1615017]
[1742323089687,0.0985502,81514.0,81513.0,0.1615017]
[1742323090376,0.0985502,81514.0,81513.0,0.1635017]
[1742323090786,0.0593502,81514.0,81513.0,0.1635017]
[1742323091289,0.0593502,81514.0,81513.0,0.1655017]
[1742323091485,0.06152701,81523.0,81517.0,0.0613479]
[1742323091678,0.06152701,81523.0,81522.0,0.1226883]
[1742323091874,0.00018331,81523.0,81522.0,0.2455283]
[1742323092188,0.00018331,81523.0,81522.0,0.3216283]
[1742323092386,0.122672,81536.0,81535.0,0.1839968]
[1742323092574,0.1839996,81539.0,81538.0,0.1839925]
[1742323092776,0.1839996,81539.0,81536.0,0.0613335]
[1742323092777,0.1226657,81537.0,81536.0,0.0613335]
[1742323093179,0.1598657,81537.0,81536.0,0.09295639]
[1742323093690,0.1598657,81537.0,81536.0,0.13095639]
[1742323093880,0.1977657,81537.0,81536.0,0.13095639]
[1742323094085,0.1977657,81537.0,81536.0,0.06962289]
[1742323094589,0.1977657,81537.0,81531.0,0.12284]
[1742323094590,0.1226733,81532.0,81531.0,0.12284]
[1742323095087,0.2374733,81532.0,81531.0,0.15441308]
[1742323095688,0.2374733,81532.0,81531.0,0.19471308]
[1742323096485,0.2404733,81532.0,81531.0,0.19471308]
[1742323097076,0.2404733,81532.0,81531.0,0.31738788]
[1742323098685,0.2404733,81532.0,81531.0,0.19471308]
[1742323098992,0.2404733,81532.0,81531.0,0.31738788]
[1742323099881,0.2404733,81532.0,81531.0,0.19471308]
[1742323101598,0.1635733,81532.0,81531.0,0.19471308]
[1742323101801,0.1635733,81532.0,81531.0,0.31738788]
[1742323102093,0.2025733,81532.0,81531.0,0.31738788]
[1742323102400,0.2025733,81532.0,81531.0,0.19471308]
[1742323102591,0.2025733,81532.0,81531.0,0.31738788]
[1742323103093,0.1256733,81532.0,81531.0,0.67818788]
[1742323104387,0.1256733,81532.0,81531.0,0.55551308]
[1742323104592,0.2017733,81532.0,81531.0,0.55551308]
[1742323105800,0.2017733,81532.0,81531.0,0.48646699]
[1742323106185,0.2017733,81532.0,81531.0,0.60914179]
[1742323106587,0.2017733,81532.0,81531.0,0.64944179]
[1742323109302,0.0791,81532.0,81531.0,0.64944179]
[1742323109795,0.2017733,81532.0,81531.0,0.64944179]
[1742323110001,0.2017733,81532.0,81531.0,0.52676699]
[1742323110293,0.2017733,81532.0,81531.0,0.64944179]
[1742323112300,0.2017733,81532.0,81531.0,0.52676699]
[1742323113387,0.2017733,81532.0,81531.0,0.64944179]
[1742323113591,0.1626733,81532.0,81531.0,0.64944179]
[1742323113902,0.1256733,81532.0,81531.0,0.64944179]
[1742323114501,0.1647733,81532.0,81531.0,0.64944179]
[1742323115105,0.1256733,81532.0,81531.0,0.64944179]
[1742323115404,0.00795076,83356.0,81536.0,0.0613335]
[1742323115405,0.061333,81537.0,81536.0,0.0613335]
[1742323116102,0.061333,81537.0,81536.0,0.1376335]
[1742323116607,0.0371,81538.0,81537.0,0.1226657]
[1742323116801,0.0371,81538.0,81537.0,0.3217257]
[1742323117005,0.0613261,81546.0,81545.0,0.1839767]
[1742323117204,0.1839783,81546.0,81545.0,0.11493815]
[1742323117699,0.2210783,81546.0,81545.0,0.11493815]
[1742323117904,0.2601783,81546.0,81545.0,0.11493815]
[1742323118108,0.2601783,81546.0,81545.0,0.21606415]
[1742323118406,0.2601783,81546.0,81545.0,0.14702947]
[1742323119815,0.2210783,81546.0,81545.0,0.14702947]
[1742323120109,0.1839783,81546.0,81545.0,0.14702947]
[1742323120298,0.1859783,81546.0,81545.0,0.14702947]
[1742323122509,0.0633261,81546.0,81545.0,0.14702947]
[1742323122809,0.002,81546.0,81545.0,0.14702947]
[1742323123112,0.1246522,81546.0,81545.0,0.14702947]
[1742323123311,0.1246522,81546.0,81545.0,0.15626812]
[1742323123811,0.0613163,81561.0,81545.0,0.09494212]
[1742323124007,0.1226412,81557.0,81556.0,0.1226357]
[1742323124203,0.1226412,81557.0,81556.0,0.3218957]
[1742323124511,0.1997412,81557.0,81556.0,0.3218957]
[1742323125398,0.1997412,81557.0,81556.0,0.35230028]
[1742323127198,0.1997412,81557.0,81556.0,0.28327407]
[1742323127404,0.0386,81557.0,81556.0,0.28327407]
[1742323128310,0.1612357,81557.0,81556.0,0.28327407]
[1742323128511,0.2018357,81557.0,81556.0,0.28327407]
[1742323128811,0.1226357,81557.0,81556.0,0.28327407]
[1742323129011,0.1226357,81557.0,81556.0,0.32157407]
[1742323129306,0.262946,81563.0,81562.0,0.1226281]
[1742323129506,0.262946,81563.0,81562.0,0.05373895]
[1742323129723,0.262946,81563.0,81562.0,0.17636705]
[1742323129908,0.262946,81563.0,81562.0,0.25406705]
[1742323135921,0.0384,81563.0,81562.0,0.25406705]
[1742323136106,0.0613077,81571.0,81570.0,0.1226146]
[1742323136804,0.1226161,81570.0,81569.0,0.0372]
[1742323137113,0.1226161,81570.0,81569.0,0.1598176]
[1742323137311,0.2008161,81570.0,81569.0,0.2341176]
[1742323138121,0.2008161,81570.0,81569.0,0.1969176]
[1742323142014,0.2008161,81570.0,81569.0,0.0743]
[1742323142612,0.2008161,81570.0,81569.0,0.1969176]
[1742323143423,0.2008161,81570.0,81569.0,0.0743]
[1742323143816,0.2008161,81570.0,81569.0,0.1969176]
[1742323144621,0.2008161,81570.0,81569.0,0.48870203]
[1742323145430,0.2008161,81570.0,81569.0,0.3608]
[1742323145614,0.2008161,81570.0,81569.0,0.4834176]
[1742323147726,0.2008161,81570.0,81569.0,0.4844176]